[Event "37th Belgrade Trophy 2024"]
[Site "Belgrade"]
[Date "2024.11.23"]
[Round "7"]
[White "Xie, Jianjun"]
[Black "Zmijanac, Dusko"]
[Result "1-0"]
[ECO "C14"]
[WhiteElo "2361"]
[BlackElo "2033"]
[Annotator "TA"]
[PlyCount "109"]
[EventDate "2024.11.23"]
[EventCountry "SRB"]
[SourceTitle "playchess.com"]
[Source "ChessBase"]
[SourceQuality "1"]
[TimeControl "40/5400+30:900+30"]

{[%evp 14,109,22,23,34,26,60,69,74,75,85,78,75,75,91,79,93,80,182,143,160,125,128,125,131,120,126,111,121,120,140,143,144,133,139,111,104,106,171,188,166,116,103,55,52,55,59,48,62,60,54,56,106,108,104,85,195,212,197,173,176,177,255,187,271,271,271,271,271,271,487,439,727,716,1079,995,5069,3755,29961,29960,29967,29968,29973,29974,29980,29981,29981,29982,29981,29982,29982,29983,29986,29987,29987,29988,29988,29988]} 1. e4 e6 2. d4 d5 3. Nc3 Nf6 4. Bg5 Be7 5. e5 Nfd7 6. h4 h6 7. Bxe7 Qxe7 8. f4 a6 9. Qg4 f5 10. exf6 Nxf6 {White is slightly better.} 11. Qg6+ Qf7 12. Qxf7+ Kxf7 13. Nf3 Rf8 14. Ne5+ Kg8 15. g3 c5 16. dxc5 Nc6 17. Nxc6 bxc6 18. O-O-O a5 19. Bh3 Re8 20. Rde1 a4 21. Re5 Kf7 {[#]} 22. Rhe1 $1 {White is much more active.} Ra5 {[%cal Ba8a5,Ba5c5,Bc5c4,Bc4e4][%mdl 32]} 23. a3 g6 24. Nd1 Rxc5 25. Nf2 Bd7 (25... Rb5 $16 {is a better defense.}) 26. Nd3 $18 Rc4 27. R5e3 (27. Bg2 $18) 27... Re4 $16 28. Ne5+ (28. Nc5 $16 {[%cal Re3e4]} Rxe3 29. Rxe3) 28... Ke7 $14 {[%cal Bf7e7,Be7d6,Bd6d7][%mdl 32]} 29. Nxg6+ Kd6 30. Ne5 $36 {[%mdl 2048] Nf7+ is the strong threat. Black is under pressure.} Rg8 {[%cal Og8g3]} 31. Bg2 Rxe3 32. Rxe3 Nh5 {[#] White leaves nothing to chance now.} (32... d4 $14 33. Rd3 c5) 33. Nxd7 $1 $16 (33. Nf7+ Ke7 34. Nxh6 Rg6 35. Nf5+ Kf6 $17) 33... Kxd7 {[%mdl 4096] Endgame. KRB-KRN} 34. Bh3 {[%cal Bg2h3,Bh3e6,Be6g4,Bg4f3][%mdl 32]} Rxg3 (34... Re8 $16 {might work better.}) 35. Bxe6+ $18 (35. Rxe6 $2 {loses.} Rxh3 36. Rxh6 Nxf4 (36... Rxh4 $2 37. Rh7+ Ke6 38. Rh6+ Kf5 39. Rxc6 $19) 37. Rh7+ Kd6 $19) 35... Kd6 36. Rxg3 Nxg3 {KB-KN} 37. Bg4 h5 (37... Nf1 {was necessary.} 38. b3 axb3) 38. Bf3 Nf5 (38... Ke6 $142 39. Kd2 Nf5) 39. Bxh5 Nxh4 40. Kd2 Ng2 41. f5 c5 $2 (41... Ke7 42. b3 d4 43. bxa4 Ne3) 42. Be8 Ke5 (42... Nh4 $142 43. f6 (43. Bxa4 Nxf5 44. Be8 Nh4 $15) 43... Nf5) 43. Bxa4 Kxf5 44. Bc6 Ke5 45. c4 Nf4 46. cxd5 {White mates.} Kd4 47. a4 {[%cal Ba3a4,Ba4a5,Ba5a6][%mdl 32]} c4 48. a5 Kc5 49. a6 Kb6 50. Bb7 Nd3 51. Kc3 Ne5 52. d6 {[%cal Bd5d6,Bd6d7][%mdl 32]} Nf7 53. d7 (53. Kxc4 Nxd6+ 54. Kd4 Nf5+ 55. Kc3 Nd6 $14) 53... Kc7 54. Bd5 Nd6 55. Kb4 {Weighted Error Value: White=0.07 (flawless) /Black=0.38.  Mistake:       	White=2     	Black=8      Inaccurate:     	---       	Black=2      OK:         	White=18    	Black=9      Best:        	White=4     	Black=5      Strong:       	White=2     	---} 1-0

[Event "37th Belgrade Trophy 2024"]
[Site "Belgrade"]
[Date "2024.11.23"]
[Round "7"]
[White "Dimitrijevic, Dusan"]
[Black "Taskovic, Stefan"]
[Result "1/2-1/2"]
[ECO "A30"]
[WhiteElo "2079"]
[BlackElo "1911"]
[Annotator "NA RC"]
[PlyCount "110"]
[EventDate "2024.11.23"]
[EventCountry "SRB"]
[SourceTitle "playchess.com"]
[Source "ChessBase"]
[SourceQuality "1"]
[TimeControl "40/5400+30:900+30"]

1. Nf3 Nf6 2. g3 b6 3. Bg2 Bb7 4. O-O e6 5. c4 c5 6. Nc3 Be7 7. Re1 O-O 8. e4 d6 9. d4 cxd4 10. Nxd4 Qd7 11. b3 Nc6 12. Nf3 Rfd8 13. Bb2 Ng4 14. Qe2 Bf6 15. Rad1 a6 16. Rd2 Qc7 17. Red1 Nge5 18. Nxe5 dxe5 19. Rxd8+ Rxd8 20. Rxd8+ Qxd8 21. Qd1 Nd4 22. Kf1 Be7 23. Ne2 Nc6 24. Qxd8+ Bxd8 25. Nc1 Be7 26. Nd3 f6 27. f4 exf4 28. gxf4 Nb4 29. Nxb4 Bxb4 30. e5 Bxg2+ 31. Kxg2 f5 32. Bd4 b5 33. cxb5 axb5 34. Bb6 Kf7 35. a4 bxa4 36. bxa4 Ke8 37. a5 Kd7 38. a6 Kc8 39. Kf3 h6 40. h4 g6 41. Ke2 Be7 42. Bf2 g5 43. fxg5 hxg5 44. h5 Bf8 45. Kd3 Bh6 46. Kc4 Bg7 47. Kc5 Kc7 48. a7 Bf8+ 49. Kb5 Kb7 50. Kc4 Bh6 51. Bc5 Bg7 52. Kd3 g4 53. Bd4 Bh6 54. Ke2 f4 55. Kf2 Bg7 1/2-1/2

[Event "37th Belgrade Trophy 2024"]
[Site "Belgrade"]
[Date "2024.11.29"]
[Round "7.1"]
[White "Ughuzov, Ravan"]
[Black "Shchekachev, Andrei"]
[Result "1/2-1/2"]
[ECO "B22"]
[WhiteElo "2047"]
[BlackElo "2448"]
[Annotator "TA"]
[PlyCount "24"]
[EventDate "2024.11.23"]
[EventCountry "SRB"]
[SourceTitle "playchess.com"]
[Source "ChessBase"]
[SourceQuality "1"]
[TimeControl "40/5400+30:900+30"]

{[%evp 9,24,0,-2,0,9,-11,0,-3,12,12,13,0,18,0,0,0,23]} 1. e4 {[%emt 1:31:00]} c5 {[%emt 0:05:36]} 2. c3 {[%emt 0:00:00]} Nf6 {[%emt 0:00:15]} 3. e5 {[%emt 0:00:00]} Nd5 {[%emt 0:00:08]} 4. Nf3 {[%emt 0:00:00]} d6 {[%emt 0:00:21]} 5. Bb5+ {[%emt 0:00:00]} Bd7 {[%emt 0:08:28]} 6. Bc4 {[%emt 0:00:00]} e6 {[%emt 0:04:16]} 7. O-O {[%emt 0:00:00]} Nb6 {[%emt 0:02:57]} 8. Bb3 {[%emt 0:00:00]} dxe5 {[%emt 0:27:19]} 9. Nxe5 {[%emt 0:00:00]} Nc6 {[%emt 0:00:06]} 10. Nxd7 {[%emt 0:00:00]} Qxd7 {[%emt 0:00:03]} 11. Re1 {[%emt 0:00:00]} Be7 {[%emt 0:02:48]} 12. Qf3 {[%emt 0:00:00]} Rd8 {[%emt 0:04:00]} 1/2-1/2

[Event "37th Belgrade Trophy 2024"]
[Site "Belgrade"]
[Date "2024.11.29"]
[Round "7.2"]
[White "Bryakin, Mikhail"]
[Black "Martic, Ivan"]
[Result "1/2-1/2"]
[ECO "A72"]
[WhiteElo "2435"]
[BlackElo "2261"]
[Annotator "TA"]
[PlyCount "49"]
[EventDate "2024.11.23"]
[EventCountry "SRB"]
[SourceTitle "playchess.com"]
[Source "ChessBase"]
[SourceQuality "1"]
[TimeControl "40/5400+30:900+30"]

{[%evp 15,49,31,34,23,47,43,41,29,24,9,58,46,67,-34,-11,-32,-4,-26,-24,0,0,-27,-10,-10,-24,-31,-75,-42,14,-36,-31,-50,-48,-160,13,-236]} 1. d4 {[%emt 0:03:12]} g6 {[%emt 0:00:10]} 2. c4 {[%emt 0:00:11]} Bg7 {[%emt 0:00:08]} 3. e4 {[%emt 0:01:11]} c5 {[%emt 0:01:10]} 4. d5 {[%emt 0:00:37]} d6 {[%emt 0:00:16]} 5. Nc3 {[%emt 0:00:45]} e6 {[%emt 0:01:38]} 6. Be2 {[%emt 0:03:17]} exd5 {[%emt 0:04:38]} 7. cxd5 {[%emt 0:00:30]} Nf6 {[%emt 0:00:35]} 8. Nf3 {[%emt 0:01:01][%cal Bg1f3,Bf3e5,Be5c4][%mdl 32]} O-O {[%emt 0:00:46]} 9. Be3 {[%emt 0:01:05]} b5 {[%emt 0:06:52]} 10. e5 $1 {[%emt 0:00:22]} (10. Nxb5 Nxe4 11. Nd2 Re8) 10... dxe5 {[%emt 0:01:14]} 11. Bxb5 {[%emt 0:08:00] White is slightly better.} e4 {[%emt 0:03:50]} 12. Ne5 {[%emt 0:05:14]} Qe7 {[%emt 0:02:15]} (12... Nh5 $11 13. Nc6 Nxc6 14. dxc6 (14. Bxc6 Bxc3+ 15. bxc3 Ba6 $16) 14... Qa5) 13. Nc4 $14 {[%emt 0:05:44]} Ng4 {[%emt 0:08:41]} 14. Qe2 {[%emt 0:07:19]} (14. Bf4 $14) 14... Nxe3 $15 {[%emt 0:02:29]} 15. fxe3 {[%emt 0:03:25]} Nd7 {[%emt 0:03:14]} 16. O-O {[%emt 0:08:18]} Rb8 $1 {[%emt 0:01:23]} 17. a4 {[%emt 0:04:12]} a6 {[%emt 0:03:55]} 18. Bc6 {[%emt 0:00:27]} Ne5 $36 {[%emt 0:08:16][%mdl 2048] And now ...Bg4 would win. Black has the initiative.} 19. d6 {[%emt 0:01:33]} Qh4 {[%emt 0:03:07] Hoping for ...Bg4.} 20. Rf4 {[%emt 0:13:41] The board is on fire.} Qh6 {[%emt 0:18:18]} 21. Bd5 {[%emt 0:03:10]} Nd3 {[%emt 0:05:48]} (21... Bf5 $15) 22. Rxe4 {[%emt 0:14:04] [#]} (22. Rxf7 $1 $11 Rxf7 23. Nxe4) 22... Nxb2 $1 {[%emt 0:00:17]} 23. Rc1 {[%emt 0:00:23]} Nxc4 {[%emt 0:00:46]} 24. Qxc4 {[%emt 0:03:36] [#]} (24. Rxc4 $15 Bd4 (24... Be5 25. h3 $15) 25. Re1) 24... Rb2 $2 {[%emt 0:05:14]} (24... Bf5 $1 $17 {[%cal Rf5e4]} 25. Re7 Be6 26. Qxc5 Rbc8) 25. Re7 $2 {[%emt 0:06:37] Weighted Error Value: White=0.24 (precise) /Black=0.22 (precise) .  Loses game:     	White=1     	---        Mistake:       	White=3     	Black=3      Inaccurate:     	White=1     	---        OK:         	White=3     	Black=8      Best:        	White=3     	---        Strong:       	White=1     	Black=1      Brilliant:      	---       	Black=1} (25. Qxc5 $11 {and White has nothing to worry.} Bf5 26. Re7) 1/2-1/2

[Event "37th Belgrade Trophy 2024"]
[Site "Belgrade"]
[Date "2024.11.29"]
[Round "7.3"]
[White "Stanojoski, Zvonko"]
[Black "Triantafilidis, Mihail"]
[Result "1/2-1/2"]
[ECO "B61"]
[WhiteElo "2401"]
[BlackElo "2200"]
[Annotator "TA"]
[PlyCount "178"]
[EventDate "2024.11.23"]
[EventCountry "SRB"]
[SourceTitle "playchess.com"]
[Source "ChessBase"]
[SourceQuality "1"]
[TimeControl "40/5400+30:900+30"]

{[%evp 96,178,0,0,0,0,0,0,0,0,0,0,0,0,0,0,0,0,0,0,0,0,0,0,0,0,0,0,0,0,0,0,0,0,8,8,8,8,8,8,8,8,8,8,8,8,8,8,8,8,8,0,0,0,0,0,0,0,0,0,8,8,8,0,0,0,0,0,0,0,0,0,8,0,0,0,0,0,0,0,0,0,0,0,0]} 1. e4 {[%emt 0:04:24]} c5 {[%emt 0:00:06]} 2. Nf3 {[%emt 0:00:15]} d6 {[%emt 0:00:14]} 3. d4 {[%emt 0:00:07]} cxd4 {[%emt 0:00:05]} 4. Nxd4 {[%emt 0:00:03]} Nf6 {[%emt 0:00:09]} 5. Nc3 {[%emt 0:00:04]} Nc6 {[%emt 0:00:07]} 6. Bg5 {[%emt 0:01:27]} Bd7 {[%emt 0:00:35]} 7. Qd2 {[%emt 0:00:32]} Rc8 {[%emt 0:00:17]} 8. f4 {[%emt 0:06:05]} Nxd4 {[%emt 0:11:31]} 9. Qxd4 {[%emt 0:00:08]} Qa5 {[%emt 0:00:05]} 10. e5 {[%emt 0:00:42]} dxe5 {[%emt 0:02:05]} 11. fxe5 {[%emt 0:00:07]} Bc6 {[%emt 0:01:10]} 12. Bd2 {[%emt 0:14:23]} Rd8 {[%emt 0:06:36]} 13. Qf4 {[%emt 0:01:49]} Nd5 {[%emt 0:02:14]} 14. Nxd5 {[%emt 0:00:34]} Qxd5 {[%emt 0:00:08]} 15. Bc4 {[%emt 0:01:09]} Qe4+ {[%emt 0:01:02]} 16. Qxe4 {[%emt 0:00:06]} Bxe4 {[%emt 0:00:02]} 17. Bb5+ {[%emt 0:00:17]} Bc6 {[%emt 0:00:06]} 18. Bxc6+ {[%emt 0:00:05]} bxc6 {[%emt 0:00:05]} 19. e6 {[%emt 0:00:07]} fxe6 {[%emt 0:04:03]} 20. Bc3 {[%emt 0:02:08]} Rg8 {[%emt 0:00:53]} 21. O-O {[%emt 0:03:01]} g6 {[%emt 0:00:21]} 22. Rae1 {[%emt 0:00:49]} Bg7 {[%emt 0:00:34]} 23. Bxg7 {[%emt 0:00:15]} Rxg7 {[%emt 0:00:02]} 24. Rxe6 {[%emt 0:00:08]} Rd6 {[%emt 0:01:49]} 25. Re3 {[%emt 0:03:28]} Rf7 {[%emt 0:01:53]} 26. Rxf7 {[%emt 0:01:32]} Kxf7 {[%emt 0:00:03]} 27. Kf1 {[%emt 0:00:12]} Rd1+ {[%emt 0:04:55]} 28. Ke2 {[%emt 0:00:07]} Rg1 {[%emt 0:01:28]} 29. Kf3 {[%emt 0:01:30]} Rb1 {[%emt 0:01:39]} 30. b3 {[%emt 0:01:19]} Rb2 {[%emt 0:08:07]} 31. Rc3 {[%emt 0:00:14]} Rxa2 {[%emt 0:00:06]} 32. Rxc6 {[%emt 0:00:05]} Ke8 {[%emt 0:02:47]} 33. Rc4 {[%emt 0:01:26]} Kd7 {[%emt 0:04:16]} 34. Ke4 {[%emt 0:01:14]} Kd6 {[%emt 0:18:47]} 35. Kd3 {[%emt 0:04:37]} Ra5 {[%emt 0:01:58]} 36. Rh4 {[%emt 0:01:59]} h5 {[%emt 0:15:57]} 37. g4 {[%emt 0:06:27]} Rd5+ {[%emt 0:02:06]} 38. Ke3 {[%emt 0:00:09]} Re5+ {[%emt 0:02:27]} 39. Kf3 {[%emt 0:00:31]} Rc5 {[%emt 0:00:56]} 40. gxh5 {[%emt 0:03:35]} gxh5 {[%emt 0:01:23]} 41. c4 {[%emt 0:15:55]} a5 {[%emt 0:20:11]} 42. Ke3 {[%emt 0:01:15]} Rf5 {[%emt 0:00:00]} 43. Ke4 {[%emt 0:00:00]} Rg5 {[%emt 0:00:00]} 44. Kd4 {[%emt 0:00:00]} Rf5 {[%emt 0:00:00]} 45. Rh3 {[%emt 0:00:00]} Rf4+ {[%emt 0:00:00]} 46. Ke3 {[%emt 0:00:35]} Rf5 {[%emt 0:00:00]} 47. Ke4 {[%emt 0:00:32]} Re5+ {[%emt 0:00:31]} 48. Kd4 {[%emt 0:00:45]} Rg5 {[%emt 0:00:24]} 49. Rd3 {[%emt 0:00:45]} e6 {[%emt 0:00:33]} 50. Kc3+ {[%emt 0:02:46]} Kc5 {[%emt 0:01:43]} 51. Rd8 {[%emt 0:00:19]} Rf5 {[%emt 0:01:20]} 52. Rc8+ {[%emt 0:01:32]} Kb6 {[%emt 0:01:58]} 53. Re8 {[%emt 0:01:34]} Rf3+ {[%emt 0:00:35]} 54. Kb2 {[%emt 0:00:41]} a4 {[%emt 0:01:15]} 55. Rxe6+ {[%emt 0:00:14]} Kc5 {[%emt 0:00:21]} 56. Re5+ {[%emt 0:00:16]} Kc6 {[%emt 0:00:52]} 57. bxa4 {[%emt 0:06:37]} Rf2+ {[%emt 0:00:05]} 58. Kb3 {[%emt 0:00:04]} Rxh2 {[%emt 0:00:04]} 59. a5 {[%emt 0:00:05]} h4 {[%emt 0:00:09]} 60. a6 {[%emt 0:00:15]} Kb6 {[%emt 0:00:38]} 61. Re6+ {[%emt 0:00:29]} Ka7 {[%emt 0:00:16]} 62. Rh6 {[%emt 0:02:09]} h3 {[%emt 0:00:15]} 63. Kb4 {[%emt 0:02:13]} Rh1 {[%emt 0:01:08]} 64. Kb5 {[%emt 0:00:48]} h2 {[%emt 0:00:11]} 65. Kc5 $1 {[%emt 0:00:16]} Ka8 {[%emt 0:01:18]} (65... Ra1 66. Rxh2 Rxa6 67. Kb5 Rg6) 66. Rh7 {[%emt 0:00:15]} Kb8 {[%emt 0:00:35]} (66... Ra1 {simplifies} 67. Rh8+ Ka7 68. Rxh2 Rxa6 69. Kb5 Rg6) 67. Rb7+ {[%emt 0:01:39]} Ka8 {[%emt 0:00:39]} 68. Rb2 {[%emt 0:00:10]} Ra1 {[%emt 0:00:41]} ({Don't blunder} 68... Ka7 $2 69. Kb5 $18) 69. Rxh2 {[%emt 0:00:15]} Rxa6 {[%emt 0:00:05]} 70. Rb2 {[%emt 0:03:53]} Rh6 {[%emt 0:00:05]} 71. Rb6 {[%emt 0:00:48]} Rh4 {[%emt 0:00:38]} 72. Kb5 {[%emt 0:00:22]} Ka7 {[%emt 0:00:23]} 73. c5 {[%emt 0:00:08]} Rh7 {[%emt 0:01:07]} 74. Ra6+ {[%emt 0:00:51]} Kb8 {[%emt 0:00:45]} 75. Kb6 {[%emt 0:04:01]} Rh1 {[%emt 0:00:28]} 76. Ra2 {[%emt 0:00:39]} Rb1+ {[%emt 0:00:19]} 77. Kc6 {[%emt 0:00:06]} Rh1 {[%emt 0:00:30]} 78. Rb2+ {[%emt 0:01:34]} Ka7 {[%emt 0:00:03]} 79. Rb7+ {[%emt 0:01:22]} Ka6 {[%emt 0:00:26]} 80. Rd7 {[%emt 0:00:16]} Rh6+ {[%emt 0:00:41]} 81. Rd6 {[%emt 0:00:28]} Rh7 {[%emt 0:00:08]} 82. Re6 {[%emt 0:00:23]} (82. Rd1 $5 Rh6+ $8 83. Rd6 $11) 82... Rg7 {[%emt 0:00:53]} 83. Rh6 {[%emt 0:13:45]} Ka7 {[%emt 0:00:04]} 84. Rd6 {[%emt 0:00:56]} Ka6 {[%emt 0:00:08]} 85. Rd1 {[%emt 0:01:44]} Rg6+ {[%emt 0:00:35]} 86. Kd7 {[%emt 0:00:15]} Kb5 {[%emt 0:01:33]} 87. c6 {[%emt 0:00:10]} Rg7+ {[%emt 0:00:03]} 88. Kd6 {[%emt 0:00:24]} Rg6+ {[%emt 0:00:04]} 89. Kd7 {[%emt 0:00:25]} Rg7+ {[%emt 0:00:04]} 1/2-1/2

[Event "37th Belgrade Trophy 2024"]
[Site "Belgrade"]
[Date "2024.11.29"]
[Round "7.4"]
[White "Popovic, Dragan B"]
[Black "Petrovic, Aleksa"]
[Result "0-1"]
[ECO "A07"]
[WhiteElo "2185"]
[BlackElo "2262"]
[Annotator "RC"]
[PlyCount "68"]
[EventDate "2024.11.23"]
[EventCountry "SRB"]
[SourceTitle "playchess.com"]
[Source "ChessBase"]
[SourceQuality "1"]
[TimeControl "40/5400+30:900+30"]

1. g3 {[%emt 0:00:30]} d5 {[%emt 0:17:18]} 2. Nf3 {[%emt 0:00:24]} c6 {[%emt 0:01:27]} 3. Bg2 {[%emt 0:00:08]} Bf5 {[%emt 0:00:29]} 4. O-O {[%emt 0:00:37]} e6 {[%emt 0:00:21]} 5. c4 {[%emt 0:01:23]} dxc4 {[%emt 0:02:55]} 6. a4 {[%emt 0:00:36]} Nf6 {[%emt 0:00:44]} 7. Na3 {[%emt 0:00:24]} Bxa3 {[%emt 0:01:14]} 8. Rxa3 {[%emt 0:00:19]} O-O {[%emt 0:01:42]} 9. b3 {[%emt 0:00:39]} cxb3 {[%emt 0:00:50]} 10. d3 {[%emt 0:00:23]} Nbd7 {[%emt 0:02:52]} 11. Qxb3 {[%emt 0:07:35]} Qc7 {[%emt 0:04:32]} 12. Bb2 {[%emt 0:08:46]} e5 {[%emt 0:05:50]} 13. Rc1 {[%emt 0:01:48]} Rfe8 {[%emt 0:11:25]} 14. a5 {[%emt 0:03:13]} a6 {[%emt 0:02:45]} 15. Ra4 {[%emt 0:04:14]} e4 {[%emt 0:05:53]} 16. Ng5 {[%emt 0:05:40]} Bg6 {[%emt 0:07:42]} 17. Nxe4 {[%emt 0:08:56]} Nxe4 {[%emt 0:00:49]} 18. dxe4 {[%emt 0:00:16]} Rab8 {[%emt 0:02:03]} 19. f4 {[%emt 0:17:27]} b5 {[%emt 0:09:06]} 20. axb6 {[%emt 0:02:04]} Rxb6 {[%emt 0:00:37]} 21. Qc3 {[%emt 0:01:59]} f6 {[%emt 0:00:29]} 22. Ba3 {[%emt 0:00:14]} Bf7 {[%emt 0:04:13]} 23. Kf1 {[%emt 0:14:49]} c5 {[%emt 0:01:12]} 24. Ra5 {[%emt 0:07:05]} c4 {[%emt 0:02:31]} 25. Qd2 {[%emt 0:03:16]} Be6 {[%emt 0:06:38]} 26. Bf3 {[%emt 0:04:49]} Rc8 {[%emt 0:01:32]} 27. Bb4 {[%emt 0:03:22]} Qb8 {[%emt 0:00:59]} 28. Ba3 {[%emt 0:01:16]} Qc7 {[%emt 0:01:18]} 29. Bb4 {[%emt 0:00:44]} Rcb8 {[%emt 0:00:13]} 30. Ba3 {[%emt 0:00:45]} Rb1 {[%emt 0:03:02]} 31. Rxa6 {[%emt 0:01:06]} c3 {[%emt 0:00:40]} 32. Qc2 {[%emt 0:01:05]} Rxc1+ {[%emt 0:01:06]} 33. Bxc1 {[%emt 0:00:02]} Bb3 {[%emt 0:00:42]} 34. Qd3 {[%emt 0:00:49]} Nc5 {[%emt 0:00:18]} 0-1

[Event "37th Belgrade Trophy 2024"]
[Site "Belgrade"]
[Date "2024.11.29"]
[Round "7.6"]
[White "Atalik, Suat"]
[Black "Leftheriotis, Alexandros"]
[Result "1-0"]
[ECO "E94"]
[WhiteElo "2420"]
[BlackElo "2165"]
[Annotator "TA"]
[PlyCount "47"]
[EventDate "2024.11.23"]
[EventCountry "SRB"]
[SourceTitle "playchess.com"]
[Source "ChessBase"]
[SourceQuality "1"]
[TimeControl "40/5400+30:900+30"]

{[%evp 17,47,33,39,34,36,29,78,86,73,91,99,84,331,325,320,326,384,393,523,522,521,519,689,674,693,693,686,664,683,673,642,616]} 1. d4 {[%emt 0:00:04]} Nf6 {[%emt 0:00:21]} 2. c4 {[%emt 0:00:19]} g6 {[%emt 0:00:32]} 3. Nc3 {[%emt 0:00:28]} Bg7 {[%emt 0:00:15]} 4. e4 {[%emt 0:00:24]} d6 {[%emt 0:00:32]} 5. Be2 {[%emt 0:00:25]} O-O {[%emt 0:00:31]} 6. Nf3 {[%emt 0:00:34]} e5 {[%emt 0:00:46]} 7. O-O {[%emt 0:00:37]} exd4 {[%emt 0:01:35]} 8. Nxd4 {[%emt 0:02:43]} Re8 {[%emt 0:00:17]} 9. f3 {[%emt 0:00:49]} c6 {[%emt 0:00:52]} 10. Bg5 {[%emt 0:01:43]} Qb6 {[%emt 0:01:43][%cal Of6e4]} 11. Kh1 {[%emt 0:00:22]} Qxb2 {[%emt 0:08:16]} (11... d5 $11) 12. Na4 $1 $16 {[%emt 0:01:28]} Qb4 {[%emt 0:03:11]} 13. Bd2 $1 {[%emt 0:00:59][%cal Bg5d2,Bd2c1,Bc1b2][%mdl 32]} Qa3 {[%emt 0:00:06]} 14. Rb1 $1 {[%emt 0:00:39] Bc1 is the strong threat.} Na6 $2 {[%emt 0:05:49] [#]} (14... Qxa2 $2 {too greedy.} 15. Ra1 $18) (14... d5 $16 {is a better defense.}) 15. Bc1 $1 $18 {[%emt 0:00:52]} Qxa2 {[%emt 0:00:24] [#]} 16. Bb2 $1 {[%emt 0:00:19]} Nc5 {[%emt 0:06:54][%cal Ba6c5,Bc5a4,Ba4b2][%mdl 32]} 17. Ra1 {[%emt 0:01:31][%cal Bb1a1,Ba1a2,Ba2b2][%mdl 32]} Nxa4 {[%emt 0:02:57]} 18. Rxa2 {[%emt 0:00:12]} Nxb2 {[%emt 0:00:06]} 19. Rxb2 {[%emt 0:01:24]} Nxe4 {[%emt 0:01:12]} 20. fxe4 {[%emt 0:00:38]} c5 {[%emt 0:00:05] [#]} 21. Nb5 $1 {[%emt 0:08:11]} Bxb2 {[%emt 0:00:07]} 22. Nc7 {[%emt 0:00:03]} Be6 {[%emt 0:00:22]} 23. Nxa8 {[%emt 0:00:07]} Rxa8 {[%emt 0:00:05]} 24. Qb3 {[%emt 0:00:07]} 1-0

[Event "37th Belgrade Trophy 2024"]
[Site "Belgrade"]
[Date "2024.11.29"]
[Round "7.7"]
[White "Jandric, Damjan"]
[Black "Slobodiansky, Steven"]
[Result "1/2-1/2"]
[ECO "C02"]
[WhiteElo "2110"]
[BlackElo "2273"]
[Annotator "RC"]
[PlyCount "76"]
[EventDate "2024.11.23"]
[EventCountry "SRB"]
[SourceTitle "playchess.com"]
[Source "ChessBase"]
[SourceQuality "1"]
[TimeControl "40/5400+30:900+30"]

1. e4 {[%emt 0:00:05]} e6 {[%emt 0:00:07]} 2. d4 {[%emt 0:00:07]} d5 {[%emt 0:00:05]} 3. e5 {[%emt 0:00:05]} c5 {[%emt 0:00:14]} 4. c3 {[%emt 0:00:07]} Nc6 {[%emt 0:00:08]} 5. Nf3 {[%emt 0:00:07]} Qb6 {[%emt 0:00:10]} 6. a3 {[%emt 0:00:19]} Nh6 {[%emt 0:01:21]} 7. Bd3 {[%emt 0:04:17]} cxd4 {[%emt 0:00:47]} 8. cxd4 {[%emt 0:00:31]} Nf5 {[%emt 0:00:36]} 9. Bxf5 {[%emt 0:00:49]} exf5 {[%emt 0:00:06]} 10. O-O {[%emt 0:00:15]} Be7 {[%emt 0:00:19]} 11. Nc3 {[%emt 0:00:10]} Be6 {[%emt 0:00:09]} 12. b4 {[%emt 0:03:59]} O-O {[%emt 0:01:32]} 13. Be3 {[%emt 0:02:32]} Rfc8 {[%emt 0:03:39]} 14. Na4 {[%emt 0:02:19]} Qd8 {[%emt 0:00:51]} 15. Ne1 {[%emt 0:00:25]} Rc7 {[%emt 0:15:53]} 16. Nd3 {[%emt 0:01:16]} Rac8 {[%emt 0:00:24]} 17. g3 {[%emt 0:15:25]} Nb8 {[%emt 0:05:55]} 18. Nac5 {[%emt 0:10:13]} b6 {[%emt 0:03:19]} 19. Nxe6 {[%emt 0:07:08]} fxe6 {[%emt 0:00:04]} 20. g4 {[%emt 0:00:56]} Qf8 {[%emt 0:01:06]} 21. Qf3 {[%emt 0:01:25]} Rc3 {[%emt 0:01:57]} 22. Rfd1 {[%emt 0:01:06]} g5 {[%emt 0:12:27]} 23. gxf5 {[%emt 0:03:34]} Qxf5 {[%emt 0:00:12]} 24. Qxf5 {[%emt 0:00:10]} exf5 {[%emt 0:00:03]} 25. Rdc1 {[%emt 0:08:06]} R8c4 {[%emt 0:03:01]} 26. Ne1 {[%emt 0:30:44]} Nc6 {[%emt 0:13:12]} 27. Rxc3 {[%emt 0:00:06]} Rxc3 {[%emt 0:00:02]} 28. b5 {[%emt 0:00:06]} Na5 {[%emt 0:01:52]} 29. Rc1 {[%emt 0:02:16]} Rc4 {[%emt 0:01:24]} 30. Rxc4 {[%emt 0:01:33]} Nxc4 {[%emt 0:00:09]} 31. Nc2 {[%emt 0:00:11]} Kf7 {[%emt 0:07:53]} 32. Bc1 {[%emt 0:00:23]} Kg6 {[%emt 0:03:54]} 33. f3 {[%emt 0:02:14]} g4 {[%emt 0:01:28]} 34. Nb4 {[%emt 0:00:45]} Bxb4 {[%emt 0:03:28]} 35. axb4 {[%emt 0:00:01]} h5 {[%emt 0:00:19]} 36. Kf2 {[%emt 0:00:29]} h4 {[%emt 0:02:26]} 37. Kg2 {[%emt 0:00:27]} Kh5 {[%emt 0:01:17]} 38. Kf2 {[%emt 0:00:26]} Kg6 {[%emt 0:00:26]} 1/2-1/2

[Event "37th Belgrade Trophy 2024"]
[Site "Belgrade"]
[Date "2024.11.29"]
[Round "7.8"]
[White "Veleski, Robert"]
[Black "Javadov, Habil"]
[Result "1/2-1/2"]
[ECO "E06"]
[WhiteElo "2093"]
[BlackElo "2190"]
[Annotator "RC"]
[PlyCount "44"]
[EventDate "2024.11.23"]
[EventCountry "SRB"]
[SourceTitle "playchess.com"]
[Source "ChessBase"]
[SourceQuality "1"]
[TimeControl "40/5400+30:900+30"]

1. d4 {[%emt 0:05:46]} e6 {[%emt 0:00:31]} 2. Nf3 {[%emt 0:00:45]} d5 {[%emt 0:00:08]} 3. c4 {[%emt 0:00:27]} Nf6 {[%emt 0:00:06]} 4. g3 {[%emt 0:00:39]} Be7 {[%emt 0:00:05]} 5. Bg2 {[%emt 0:00:27]} O-O {[%emt 0:03:15]} 6. O-O {[%emt 0:00:28]} c6 {[%emt 0:00:08]} 7. Nc3 {[%emt 0:00:40]} b6 {[%emt 0:03:42]} 8. Ne5 {[%emt 0:01:23]} Ba6 {[%emt 0:02:17]} 9. cxd5 {[%emt 0:02:25]} cxd5 {[%emt 0:01:40]} 10. Bf4 {[%emt 0:01:48]} Nfd7 {[%emt 0:06:49]} 11. Rc1 {[%emt 0:05:20]} Nxe5 {[%emt 0:05:20]} 12. Bxe5 {[%emt 0:02:30]} Nd7 {[%emt 0:04:44]} 13. Qa4 {[%emt 0:02:59]} Bb7 {[%emt 0:08:04]} 14. Bc7 {[%emt 0:11:34]} Qe8 {[%emt 0:01:02]} 15. Nb5 {[%emt 0:09:18]} Nf6 {[%emt 0:02:53]} 16. Qb3 {[%emt 0:00:51]} Bc6 {[%emt 0:06:24]} 17. a4 {[%emt 0:04:03]} Qd7 {[%emt 0:00:56]} 18. Bf4 {[%emt 0:01:17]} Rac8 {[%emt 0:06:58]} 19. Nc3 {[%emt 0:05:11]} Nh5 {[%emt 0:02:24]} 20. Bd2 {[%emt 0:01:46]} Nf6 {[%emt 0:03:02]} 21. Rc2 {[%emt 0:41:23]} Nh5 {[%emt 0:40:32]} 22. Bf4 f6 1/2-1/2